bitfinex/quotes_BTCUSD_20240721
["timestamp","ask_amount","ask_price","bid_price","bid_amount"]
[1721572853073,0.8993481,67398.0,67397.0,0.01517861]
[1721572853459,0.6026041,67398.0,67397.0,0.002]
[1721572853881,0.6026041,67398.0,67397.0,0.004]
[1721572854106,0.8993481,67398.0,67397.0,0.004]
[1721572854891,0.1727,67388.0,67387.0,0.000924]
[1721572855078,0.617882,67388.0,67387.0,0.000924]
[1721572855296,0.62096662,67388.0,67387.0,0.000924]
[1721572855500,0.32417862,67388.0,67387.0,0.000924]
[1721572855701,1.07213636,67388.0,67387.0,0.000924]
[1721572856106,0.77534836,67388.0,67387.0,0.000924]
[1721572856355,0.77534836,67388.0,67387.0,0.007924]
[1721572856573,0.77534836,67388.0,67387.0,0.000924]
[1721572856783,1.07213636,67388.0,67387.0,0.000924]
[1721572856962,1.07213636,67388.0,67387.0,0.007924]
[1721572857188,0.77534836,67388.0,67387.0,0.007924]
[1721572857635,0.77534836,67388.0,67387.0,0.057924]
[1721572857636,0.17578462,67388.0,67387.0,0.057924]
[1721572857814,0.00308462,67388.0,67387.0,0.1187164]
[1721572858034,0.00308462,67388.0,67387.0,1.19254639]
[1721572858239,0.1727,67400.0,67397.0,0.248374]
[1721572858440,0.1727,67400.0,67399.0,0.05]
[1721572858702,0.1727,67400.0,67399.0,0.17325865]
[1721572858882,0.1727,67400.0,67399.0,0.05]
[1721572859284,0.1727,67400.0,67397.0,0.05]
[1721572859500,0.17580126,67400.0,67398.0,0.12603362]
[1721572859725,0.17580126,67400.0,67397.0,0.054]
[1721572859927,0.00935996,67399.0,67398.0,0.12323987]
[1721572860141,0.00935996,67399.0,67397.0,0.05]
[1721572860314,0.00935996,67399.0,67398.0,0.05]
[1721572860518,0.00935996,67399.0,67398.0,0.1732392]
[1721572860722,0.00935996,67399.0,67398.0,0.17323905]
[1721572860921,0.00935996,67399.0,67398.0,0.05]
[1721572861132,0.00935996,67399.0,67397.0,0.05]
[1721572861422,0.00935996,67399.0,67398.0,0.005]
[1721572861621,0.00935996,67399.0,67398.0,0.055]
[1721572862035,0.00935996,67399.0,67398.0,1.58726293]
[1721572862189,0.00935996,67399.0,67398.0,1.56192493]
[1721572862391,0.2159,67419.0,67413.0,0.05]
[1721572862619,0.2159,67419.0,67414.0,0.12603319]
[1721572862819,0.00318867,67418.0,67417.0,0.05]
[1721572863018,0.291,67428.0,67419.0,0.05]
[1721572863019,0.44520329,67428.0,67419.0,0.05]
[1721572863226,0.44520329,67428.0,67420.0,0.002794]
[1721572863429,0.00322838,67427.0,67421.0,0.05]
[1721572863685,0.00322838,67427.0,67426.0,0.544931]
[1721572863854,0.2159,67436.0,67426.0,0.12319456]
[1721572864030,0.2159,67436.0,67427.0,0.20329288]
[1721572864229,0.297379,67445.0,67428.0,0.12317942]
[1721572864230,0.2159,67444.0,67428.0,0.12317942]
[1721572864432,0.2159,67444.0,67429.0,0.12597342]
[1721572864633,0.2159,67444.0,67429.0,0.002794]
[1721572864844,0.00329087,67443.0,67430.0,0.0757]
[1721572865063,0.2159,67444.0,67436.0,0.148286]
[1721572865274,0.2159,67444.0,67430.0,0.0757]
[1721572865458,0.2159,67444.0,67433.0,0.148293]
[1721572865850,0.2159,67444.0,67431.0,0.148299]
[1721572865851,0.01050104,67443.0,67431.0,0.148299]
[1721572866049,0.2159,67444.0,67432.0,0.148297]
[1721572866402,0.01050104,67443.0,67431.0,0.148299]
[1721572866616,0.01050104,67443.0,67430.0,0.078494]
[1721572866808,0.01050104,67443.0,67431.0,0.148298]
[1721572867013,0.01050104,67443.0,67430.0,0.078494]
[1721572867228,0.01050104,67443.0,67431.0,0.148299]
[1721572867444,0.01050104,67443.0,67430.0,0.0757]
[1721572867647,0.01050104,67443.0,67430.0,0.1373351]
[1721572867837,0.01050104,67443.0,67430.0,0.078494]
[1721572868280,0.01050104,67443.0,67430.0,0.23008174]
[1721572868547,0.01050104,67443.0,67430.0,0.37838274]
[1721572868974,0.2159,67436.0,67428.0,0.002794]
[1721572869185,0.2159,67436.0,67416.0,0.296661]
[1721572869186,0.364189,67436.0,67424.0,0.002794]
[1721572869398,0.0032696,67435.0,67422.0,0.002794]
[1721572869614,0.0792,67434.0,67422.0,0.002794]
[1721572869837,0.2159,67428.0,67422.0,0.002794]
[1721572870055,0.00326078,67433.0,67422.0,0.002794]
[1721572870265,0.2159,67436.0,67422.0,0.002794]
[1721572870266,0.00323135,67427.0,67422.0,0.002794]
[1721572870469,0.148291,67435.0,67422.0,0.002794]
[1721572870657,0.01071884,67432.0,67422.0,0.0241256]
[1721572870898,0.364189,67436.0,67422.0,0.002794]
[1721572871104,0.0074682,67431.0,67422.0,0.002794]
[1721572871328,0.2159,67436.0,67422.0,0.002794]
[1721572871532,0.00747281,67430.0,67428.0,0.005]
[1721572871736,0.2159,67436.0,67428.0,0.005]
[1721572871949,0.00747556,67429.0,67428.0,0.005]
[1721572872159,0.29307479,67436.0,67428.0,0.005]
[1721572872368,0.00747556,67429.0,67428.0,0.005]
[1721572872663,0.002,67431.0,67422.0,0.002794]
[1721572872864,0.00747556,67429.0,67422.0,0.002794]
[1721572873073,0.00747556,67429.0,67424.0,0.148315]
[1721572873074,0.0032372,67429.0,67424.0,0.148315]
[1721572873280,0.0032372,67429.0,67425.0,0.151105]
[1721572873490,0.0032372,67429.0,67425.0,0.002794]
[1721572873624,0.0032372,67429.0,67427.0,0.148308]
[1721572873837,0.002,67430.0,67428.0,0.002794]
[1721572874056,0.002,67430.0,67429.0,0.89590174]
[1721572874213,0.2159,67444.0,67429.0,0.45098974]
[1721572874587,0.08459504,67443.0,67429.0,0.15438174]
[1721572874797,0.08459504,67443.0,67430.0,0.002794]
[1721572875003,0.002,67436.0,67430.0,0.15438174]
[1721572875611,0.2159,67444.0,67431.0,0.15438174]
[1721572875820,0.002,67443.0,67433.0,0.148294]
[1721572875965,0.00942025,67443.0,67433.0,0.148294]
[1721572876316,0.00942025,67443.0,67431.0,0.15438174]
[1721572876531,0.01042025,67443.0,67433.0,0.148294]
[1721572876729,0.00620129,67442.0,67434.0,0.002794]
[1721572876944,0.2159,67445.0,67433.0,0.002794]
[1721572877156,0.00620399,67441.0,67433.0,0.002794]
[1721572877369,0.2159,67445.0,67433.0,0.002794]
[1721572877573,0.2159,67435.0,67433.0,0.002794]
[1721572877777,0.2159,67435.0,67427.0,0.1424]
[1721572877998,0.00621638,67434.0,67428.0,0.002794]
[1721572878209,0.2159,67435.0,67428.0,0.002794]
[1721572878415,0.0078545,67433.0,67427.0,0.1424]
[1721572878628,0.0078545,67433.0,67428.0,0.002794]
[1721572878885,0.0078545,67433.0,67427.0,0.0622]
[1721572879070,0.0078545,67433.0,67427.0,0.0632]
[1721572879273,0.0078545,67433.0,67427.0,0.0642]
[1721572879495,0.0078545,67433.0,67427.0,0.0632]
[1721572879887,0.0078545,67433.0,67428.0,0.003]
[1721572880308,0.2159,67435.0,67428.0,0.003]
[1721572880570,0.00785759,67432.0,67428.0,0.003]
[1721572880827,0.2159,67435.0,67428.0,0.003]
[1721572881253,0.00785979,67434.0,67427.0,0.0622]
[1721572881484,0.00785979,67434.0,67427.0,0.002]
[1721572881683,0.15615379,67434.0,67427.0,0.002]
[1721572881911,0.00785979,67434.0,67427.0,0.002]
[1721572882126,0.00785979,67434.0,67428.0,0.15738174]
[1721572882357,0.00785979,67434.0,67429.0,0.002794]
[1721572882548,0.2159,67435.0,67429.0,0.15717574]
[1721572882893,0.2159,67435.0,67429.0,0.002794]
[1721572882894,0.00785644,67434.0,67429.0,0.002794]
[1721572883105,0.364191,67435.0,67427.0,0.002]
[1721572883328,0.00785478,67433.0,67427.0,0.002]
[1721572883483,0.148303,67430.0,67427.0,0.002]
[1721572883687,0.148302,67430.0,67427.0,0.002]
[1721572883892,0.00785478,67433.0,67428.0,0.001]
[1721572883893,0.1483,67431.0,67428.0,0.001]
[1721572884095,0.00785478,67433.0,67428.0,0.001]
[1721572884295,0.00460523,67430.0,67428.0,0.001]
[1721572884744,0.15155281,67433.0,67428.0,0.001]
[1721572884951,0.00784816,67429.0,67428.0,0.001]
[1721572885185,0.364173,67443.0,67428.0,0.0781]
[1721572885377,0.2159,67443.0,67429.0,0.1211976]
[1721572885700,0.2159,67443.0,67429.0,0.2695016]
[1721572885925,0.2159,67443.0,67430.0,0.15438174]
[1721572886161,0.00328867,67442.0,67431.0,0.002794]
[1721572886391,0.00328867,67442.0,67431.0,0.15717574]
[1721572887430,0.15156467,67442.0,67431.0,0.15717574]
[1721572888040,0.00328867,67442.0,67432.0,0.12316463]
[1721572888247,0.00328867,67442.0,67433.0,0.06026844]
[1721572889168,0.00328867,67442.0,67433.0,0.002794]
[1721572889382,0.00328867,67442.0,67434.0,0.12316104]
[1721572889608,0.15156367,67442.0,67435.0,0.002794]
[1721572889821,0.00328867,67442.0,67432.0,0.15717574]
[1721572890026,0.00456683,67441.0,67432.0,0.15717574]
[1721572890233,0.00327985,67440.0,67432.0,0.15717574]
[1721572891542,0.00327985,67440.0,67433.0,0.12316593]
[1721572891745,0.00327985,67440.0,67434.0,0.12595993]
[1721572891975,0.00327985,67440.0,67435.0,0.12316593]
[1721572892188,0.00327985,67440.0,67436.0,0.002794]
[1721572892407,0.00327985,67440.0,67433.0,0.002794]
[1721572892578,0.00327985,67440.0,67434.0,0.12316533]
[1721572892776,0.00327985,67440.0,67435.0,0.12595933]
[1721572892981,0.00327985,67440.0,67436.0,0.12316533]
[1721572893302,0.00327985,67440.0,67437.0,0.12595933]
[1721572893582,0.00327985,67440.0,67438.0,0.12316533]
[1721572893786,0.00327985,67440.0,67433.0,0.002794]
[1721572894003,0.00327985,67440.0,67434.0,0.12316511]
[1721572894147,0.00327985,67440.0,67435.0,0.12595911]
[1721572894328,0.00327985,67440.0,67436.0,0.12316511]
[1721572894530,0.00327985,67440.0,67437.0,0.12595911]
[1721572894741,0.00327985,67440.0,67438.0,0.12316517]
[1721572894946,0.00327985,67440.0,67439.0,0.19025917]
[1721572895169,0.320758,67450.0,67439.0,0.18746517]
[1721572895375,0.1,67449.0,67440.0,0.12595917]
[1721572895574,0.1725,67450.0,67441.0,0.17245806]
[1721572895775,0.1725,67450.0,67442.0,0.12595917]
[1721572895980,0.1725,67450.0,67444.0,0.0799]
[1721572896183,0.156605,67456.0,67445.0,0.12595917]
[1721572896382,0.00836,67456.0,67446.0,0.16411855]
[1721572896647,0.00836,67456.0,67447.0,0.12595917]
[1721572896865,0.148232,67462.0,67448.0,0.12316517]
[1721572897074,0.0656,67463.0,67449.0,0.12595917]
[1721572897075,0.1725,67459.0,67449.0,0.12595917]
[1721572897222,0.1725,67459.0,67450.0,0.1700375]
[1721572897427,0.1725,67459.0,67451.0,0.12595917]
[1721572897765,0.1725,67459.0,67452.0,0.12316517]
[1721572897965,0.1725,67459.0,67453.0,0.1259284]
[1721572898154,0.1725,67459.0,67454.0,0.1231344]
[1721572898329,0.1725,67459.0,67455.0,0.002794]
[1721572898533,0.1725,67459.0,67448.0,0.15538174]
[1721572898534,0.07717479,67456.0,67449.0,0.002794]
[1721572898742,0.1725,67451.0,67449.0,0.002794]
[1721572898946,0.1725,67451.0,67448.0,0.001]
[1721572899123,0.14826,67449.0,67448.0,0.001]
[1721572899323,0.7413,67449.0,67448.0,0.001]
[1721572899524,0.44812321,67449.0,67448.0,0.001]
[1721572899742,0.15160321,67449.0,67434.0,0.151086]
[1721572899947,0.1725,67445.0,67435.0,0.27753345]
[1721572900211,0.1725,67445.0,67436.0,0.12594571]
[1721572900395,0.1725,67445.0,67437.0,0.12315171]
[1721572900598,0.1725,67445.0,67436.0,0.15717574]
[1721572900599,0.1725,67445.0,67438.0,0.12594571]
[1721572900842,0.1725,67445.0,67439.0,0.12315171]
[1721572901017,0.1725,67445.0,67436.0,0.15438174]
[1721572901018,0.1725,67445.0,67440.0,0.12594571]
[1721572901247,0.00657442,67444.0,67441.0,0.12315171]
[1721572901447,0.00657442,67444.0,67442.0,0.12594571]
[1721572901671,0.00657442,67444.0,67443.0,0.12315171]
[1721572902550,0.00657442,67444.0,67443.0,0.13546688]
[1721572902988,0.148255,67452.0,67443.0,0.13546688]
[1721572903197,0.2965,67454.0,67444.0,0.12594571]
[1721572903412,0.00655238,67451.0,67445.0,0.13574628]
[1721572903630,0.00655238,67451.0,67446.0,0.12594571]
[1721572903840,0.148245,67456.0,67447.0,0.12315171]
[1721572904047,0.148245,67456.0,67448.0,0.002794]
[1721572904286,0.00656066,67455.0,67449.0,0.12313727]
[1721572904493,0.00656066,67455.0,67450.0,0.12593127]
[1721572904715,0.00656066,67455.0,67451.0,0.12313727]
[1721572904935,0.00656066,67455.0,67452.0,0.12593127]
[1721572905144,0.00656066,67455.0,67453.0,0.12313727]
[1721572905343,0.00656066,67455.0,67445.0,0.065]
[1721572905548,0.00656066,67455.0,67446.0,0.28031259]
[1721572905756,0.00656066,67455.0,67447.0,0.12313685]
[1721572905967,0.00656066,67455.0,67448.0,0.12593085]
[1721572906174,0.1725,67454.0,67451.0,0.001]
[1721572906380,0.148253,67452.0,67451.0,0.001]
[1721572906591,0.148253,67452.0,67449.0,0.001]
[1721572906787,0.00661103,67453.0,67449.0,0.001]
[1721572907236,0.148256,67451.0,67449.0,0.001]
[1721572907441,0.148257,67451.0,67449.0,0.001]
[1721572907645,0.148257,67450.0,67449.0,0.001]
[1721572908101,0.444793,67447.0,67446.0,0.001]
[1721572908304,0.320764,67447.0,67446.0,0.001]
[1721572908519,0.1725,67447.0,67446.0,0.001]
[1721572908731,0.148262,67448.0,67434.0,0.151086]
[1721572908940,0.1421,67450.0,67435.0,0.27753702]
[1721572909157,0.148267,67446.0,67436.0,0.12594928]
[1721572909327,0.148267,67446.0,67437.0,0.12315528]
[1721572909540,0.148267,67446.0,67438.0,0.12594928]
[1721572909748,0.148269,67445.0,67439.0,0.12315528]
[1721572909933,0.148269,67445.0,67440.0,0.12594928]
[1721572910142,0.00329305,67444.0,67441.0,0.12315528]
[1721572910350,0.148273,67443.0,67442.0,0.12594928]
[1721572910567,0.15157788,67443.0,67442.0,0.12315528]
[1721572911186,0.00330488,67443.0,67442.0,0.12315528]
[1721572911544,0.148266,67446.0,67442.0,0.12315528]
[1721572911767,0.0033019,67443.0,67442.0,0.007]
[1721572911974,0.1421,67450.0,67442.0,0.13015567]
[1721572911975,0.0789,67450.0,67442.0,0.13015567]
[1721572912172,0.149259,67450.0,67443.0,0.13896524]
[1721572912390,0.00660606,67449.0,67444.0,0.12315567]
[1721572912615,0.00660606,67449.0,67445.0,0.12594967]
[1721572912967,0.15486706,67449.0,67445.0,0.002794]
[1721572913174,0.15486706,67449.0,67443.0,0.002794]
[1721572913379,0.15486706,67449.0,67444.0,0.12314649]
[1721572913380,0.00660606,67449.0,67444.0,0.12314649]
[1721572913581,0.00660606,67449.0,67445.0,0.12594049]
[1721572913582,0.15486606,67449.0,67445.0,0.12594049]
[1721572913781,0.15486606,67449.0,67442.0,0.013]
[1721572913990,0.00660606,67449.0,67443.0,0.12594048]
[1721572914193,0.00660606,67449.0,67444.0,0.12314648]
[1721572914339,0.00660606,67449.0,67445.0,0.002794]
[1721572914542,0.00660606,67449.0,67437.0,0.15717574]
[1721572914762,0.001,67450.0,67438.0,0.19757406]
[1721572914910,0.149257,67450.0,67439.0,0.28032705]
[1721572915123,0.00660606,67449.0,67440.0,0.12315131]
[1721572915321,0.00660606,67449.0,67441.0,0.12594531]
[1721572915531,0.148263,67448.0,67442.0,0.12315143]
[1721572915731,0.00660606,67449.0,67443.0,0.002794]
[1721572915989,0.00660606,67449.0,67440.0,0.002794]
[1721572916135,0.00660606,67449.0,67441.0,0.12315146]
[1721572916336,0.148263,67448.0,67442.0,0.002794]
[1721572916580,0.148265,67447.0,67440.0,0.002794]
[1721572916792,0.148265,67447.0,67434.0,0.15717574]
[1721572916953,0.148265,67447.0,67435.0,0.12315152]
[1721572917152,0.148265,67447.0,67436.0,0.28032726]
[1721572917523,0.297518,67450.0,67438.0,0.002794]
[1721572917524,0.148262,67449.0,67438.0,0.002794]
[1721572917734,0.296511,67451.0,67438.0,0.15717574]
[1721572917923,0.0066011,67446.0,67438.0,0.23159869]
[1721572918111,0.148258,67450.0,67440.0,0.002794]
[1721572918329,0.00330187,67445.0,67440.0,0.002794]
[1721572918903,0.00293707,67445.0,67440.0,0.002794]
[1721572919108,0.148256,67451.0,67440.0,0.002794]
[1721572919339,0.00653698,67444.0,67440.0,0.002794]
[1721572919544,0.67069929,67453.0,67440.0,0.002794]
[1721572919744,0.00652704,67443.0,67442.0,0.141794]
[1721572920006,0.1,67455.0,67442.0,0.29338174]
[1721572920176,0.1,67455.0,67443.0,0.36643497]
[1721572920336,0.0065552,67454.0,67443.0,0.21816197]
[1721572920958,0.0065552,67454.0,67444.0,0.14827]
[1721572921165,0.0065552,67454.0,67445.0,0.22645497]
[1721572921386,0.0065552,67454.0,67445.0,0.37472297]
[1721572921841,0.0065552,67454.0,67445.0,0.52299097]
[1721572922031,0.0115552,67454.0,67447.0,0.002794]
[1721572922270,0.0115552,67454.0,67449.0,0.002794]
[1721572922474,0.0115552,67454.0,67451.0,0.002794]
[1721572922901,0.01,67454.0,67451.0,0.15717574]
[1721572923138,0.01,67454.0,67453.0,0.002794]
[1721572924155,0.148241,67458.0,67453.0,0.002794]
[1721572924367,0.005,67454.0,67451.0,0.002794]
[1721572924777,0.04439902,67458.0,67451.0,0.002794]
[1721572924949,0.005,67454.0,67451.0,0.002794]
[1721572925150,0.005,67454.0,67443.0,0.148272]
[1721572925354,0.005,67454.0,67444.0,0.27752618]
[1721572925507,0.01,67454.0,67444.0,0.15438174]
[1721572926106,0.01,67454.0,67453.0,0.001]
[1721572926514,0.01335378,67454.0,67453.0,0.001]
[1721572927177,0.00335378,67454.0,67453.0,0.001]
[1721572927376,0.005,67454.0,67445.0,0.002794]
[1721572927590,0.00835378,67454.0,67446.0,0.15438174]
[1721572928041,0.01335378,67454.0,67446.0,0.15438174]
[1721572928245,0.00335378,67454.0,67446.0,0.15438174]
[1721572928649,0.148252,67453.0,67446.0,0.15438174]
[1721572928896,0.00335653,67453.0,67446.0,0.15438174]
[1721572929073,0.15160853,67453.0,67446.0,0.15438174]
[1721572929278,0.29985953,67453.0,67442.0,0.0615]
[1721572929496,0.148261,67449.0,67442.0,0.0615]
[1721572930087,0.00657875,67448.0,67442.0,0.0615]
[1721572930843,0.00657875,67448.0,67443.0,0.15438174]
[1721572930958,0.00657875,67448.0,67444.0,0.03641627]
[1721572931384,0.04441613,67453.0,67444.0,0.03641627]
[1721572931583,0.00336413,67447.0,67443.0,0.15438174]
[1721572931828,0.04441613,67452.0,67443.0,0.15438174]
[1721572932094,0.00336688,67446.0,67443.0,0.001]
[1721572932279,0.0764,67448.0,67443.0,0.001]
[1721572932485,0.148269,67445.0,67443.0,0.001]
[1721572932782,0.00334993,67445.0,67443.0,0.001]
[1721572932927,0.148265,67447.0,67443.0,0.001]
[1721572933134,0.0764,67448.0,67443.0,0.001]
[1721572933135,0.00335268,67444.0,67443.0,0.001]
[1721572933339,0.741355,67444.0,67443.0,0.001]
[1721572933545,0.49261387,67444.0,67443.0,0.001]
[1721572933754,0.74471092,67444.0,67443.0,0.001]
[1721572933955,0.74471092,67444.0,67432.0,2.0]
[1721572933956,0.296559,67441.0,67432.0,2.0]
[1721572934137,0.04446194,67440.0,67432.0,2.0]
[1721572934343,0.148293,67434.0,67432.0,2.0]
[1721572934573,0.04782438,67440.0,67432.0,2.0]
[1721572934574,0.148291,67435.0,67432.0,2.0]
[1721572934778,0.0033692,67433.0,67432.0,2.0]
[1721572934996,0.148291,67435.0,67432.0,2.0]
[1721572935200,0.148291,67435.0,67432.0,2.006]
[1721572935201,0.00337106,67433.0,67432.0,2.006]
[1721572935443,0.148291,67435.0,67432.0,2.014]
[1721572935568,0.148291,67435.0,67432.0,2.008]
[1721572935765,0.00655307,67434.0,67432.0,2.008]
[1721572936064,0.00655307,67434.0,67432.0,2.022]
[1721572936266,0.148295,67433.0,67432.0,2.022]
[1721572936480,0.444885,67433.0,67432.0,2.022]
[1721572936695,0.4514353,67433.0,67432.0,2.022]
[1721572936899,0.1548453,67433.0,67432.0,2.022]
[1721572937121,0.1548453,67433.0,67432.0,2.036]
[1721572937535,0.4514353,67433.0,67432.0,2.022]
[1721572937736,0.4514353,67433.0,67432.0,2.035]
[1721572938331,0.1548453,67433.0,67432.0,2.022]
[1721572938514,0.1548453,67433.0,67432.0,2.036]
[1721572938931,0.2304453,67433.0,67432.0,2.036]
[1721572939125,0.5270353,67433.0,67432.0,2.036]
[1721572939889,0.2304453,67433.0,67432.0,2.036]
[1721572940290,0.5270353,67433.0,67432.0,2.036]
[1721572941192,0.8236253,67433.0,67432.0,2.036]
[1721572941790,0.86805396,67433.0,67432.0,2.036]
[1721572941993,0.86805396,67433.0,67432.0,2.022]
[1721572942256,0.86150366,67433.0,67432.0,2.022]
[1721572942432,0.817075,67433.0,67432.0,2.026]
[1721572943056,0.78590366,67433.0,67432.0,2.026]
[1721572943257,0.78590366,67433.0,67432.0,2.004]
[1721572943474,0.741475,67433.0,67432.0,2.004]
[1721572943599,0.746475,67433.0,67432.0,2.004]
[1721572943819,0.741475,67433.0,67432.0,2.0]
[1721572944029,0.742475,67433.0,67432.0,2.0]
[1721572944277,0.747475,67433.0,67432.0,2.0]
[1721572944484,0.92950366,67433.0,67432.0,2.0]
[1721572944690,1.03845674,67433.0,67432.0,2.0]
[1721572944840,1.43090406,67433.0,67432.0,2.0]
[1721572945510,1.04545674,67433.0,67432.0,2.0]
[1721572945677,1.12263153,67433.0,67432.0,2.0]
[1721572946096,1.18920116,67433.0,67432.0,2.0]
[1721572946335,1.2769811,67433.0,67432.0,2.0]
[1721572946696,1.5735711,67433.0,67432.0,2.0]
[1721572947333,1.7344969,67433.0,67432.0,1.0485]
[1721572947507,1.85745768,67433.0,67432.0,1.0485]
[1721572947714,2.0431611,67433.0,67432.0,1.0485]
[1721572948467,2.11981259,67433.0,67432.0,1.0485]
[1721572948757,1.82322259,67433.0,67432.0,1.0485]
[1721572949374,2.0069611,67433.0,67432.0,1.0485]
[1721572949585,1.9969611,67433.0,67432.0,1.0485]
[1721572950001,1.7093711,67433.0,67432.0,1.0495]
[1721572950203,1.7093711,67433.0,67432.0,1.02950128]
[1721572950408,2.11674851,67433.0,67432.0,1.02950128]
[1721572950638,2.32304851,67433.0,67432.0,0.98173128]
[1721572950915,2.2172611,67433.0,67432.0,0.98273128]
[1721572951120,2.35021468,67433.0,67432.0,0.98273128]
[1721572951321,1.08825,67421.0,67420.0,0.06858731]
[1721572951565,1.61223174,67421.0,67420.0,0.06858731]
[1721572951777,1.43973174,67421.0,67420.0,0.06858731]
[1721572954894,1.45373174,67421.0,67420.0,0.06958731]
[1721572955103,1.61508131,67421.0,67420.0,0.07058731]
[1721572955528,1.60808131,67421.0,67420.0,0.06958731]
[1721572955937,1.45373174,67421.0,67420.0,0.06958731]
[1721572956181,0.014,67421.0,67420.0,0.06958731]
[1721572956374,0.014,67421.0,67420.0,0.95100431]
[1721572956589,0.021,67421.0,67420.0,0.95200431]
[1721572956740,0.021,67421.0,67420.0,1.20930396]
[1721572957104,0.021,67421.0,67420.0,1.10638605]
[1721572957329,0.007,67421.0,67420.0,1.10538605]
[1721572957992,0.007,67421.0,67420.0,1.11038605]
[1721572958206,0.007,67421.0,67420.0,1.87618005]
[1721572958410,0.00738,67434.0,67420.0,1.87618005]
[1721572958411,0.00738,67434.0,67433.0,0.741475]
[1721572958621,0.00738,67434.0,67433.0,1.33864674]
[1721572958813,0.00738,67434.0,67433.0,1.46179313]
[1721572959028,0.00738,67434.0,67433.0,1.33864674]
[1721572959233,0.00738,67434.0,67433.0,1.46179171]
[1721572959862,0.00738,67434.0,67433.0,1.46679171]
[1721572960205,0.00738,67434.0,67433.0,1.46678957]
[1721572960398,0.00738,67434.0,67433.0,1.46178957]
[1721572960604,0.00738,67434.0,67433.0,1.47578957]
[1721572961372,0.00838,67434.0,67433.0,1.48478957]
[1721572963111,0.00838,67434.0,67433.0,1.47078957]
[1721572963353,0.00738,67434.0,67433.0,1.46179118]
[1721572963758,0.00838,67434.0,67433.0,1.47179118]
[1721572963991,0.00838,67434.0,67433.0,1.48579118]
[1721572964193,0.00838,67434.0,67433.0,1.46079118]
[1721572964759,0.00838,67434.0,67433.0,1.75738118]
[1721572964928,0.00838,67434.0,67433.0,1.78038118]
[1721572965127,0.00838,67434.0,67433.0,1.76638118]
[1721572965513,0.00838,67434.0,67433.0,1.78038118]
[1721572965913,0.00738,67434.0,67433.0,1.77038118]
[1721572966311,0.00738,67434.0,67433.0,1.64723674]
[1721572966510,0.00738,67434.0,67433.0,1.77037433]
[1721572966934,0.00738,67434.0,67433.0,1.47378433]
[1721572967157,0.00838,67434.0,67433.0,1.48278433]
[1721572967505,0.00838,67434.0,67433.0,1.77937433]
[1721572968571,0.00738,67434.0,67433.0,1.75637433]
[1721572968783,0.00838,67434.0,67433.0,1.76537433]
[1721572969428,0.08625268,67462.0,67449.0,0.063]
[1721572969643,0.00907789,67462.0,67456.0,0.148244]
[1721572970054,0.1613,67464.0,67455.0,0.148246]
[1721572970256,0.00900553,67463.0,67455.0,0.148246]
[1721572970434,0.1613,67464.0,67455.0,0.148246]
[1721572970875,0.007,67462.0,67456.0,0.001]
[1721572971230,0.1613,67464.0,67455.0,0.148246]
[1721572971612,0.007,67463.0,67455.0,0.001]
[1721572971975,0.1613,67464.0,67456.0,0.148244]
[1721572972182,0.006,67462.0,67456.0,0.001]
[1721572973522,0.17036965,67464.0,67455.0,0.001]
[1721572973751,0.17036965,67464.0,67458.0,0.07717479]
[1721572973925,0.007,67463.0,67458.0,0.07717479]
[1721572975526,0.17036965,67464.0,67458.0,0.07717479]
[1721572976485,0.24014262,67464.0,67458.0,0.07717479]
[1721572976694,0.17036965,67464.0,67458.0,0.07717479]
[1721572976899,0.00084,67462.0,67458.0,0.07717479]
[1721572977525,0.00084,67462.0,67450.0,0.07717479]
[1721572977723,0.10084,67462.0,67450.0,0.07717479]
[1721572977976,0.00084,67462.0,67450.0,0.22543179]
[1721572978163,0.1,67461.0,67457.0,0.07717479]
[1721572979021,0.1,67461.0,67453.0,0.14825]
[1721572979223,0.00084,67462.0,67452.0,0.148253]
[1721572979434,0.00084,67462.0,67452.0,0.30263474]
[1721572979642,0.00084,67462.0,67452.0,0.15438174]
[1721572979843,0.00084,67462.0,67457.0,0.001]
[1721572980051,0.00048207,67462.0,67458.0,0.002794]
[1721572980492,0.00048207,67462.0,67453.0,0.002794]
[1721572980704,0.24871307,67462.0,67450.0,0.002794]
[1721572980909,0.14871307,67462.0,67450.0,0.002794]
[1721572981114,0.1,67461.0,67451.0,0.45088974]
[1721572981314,0.1,67461.0,67454.0,0.148248]
[1721572981553,0.1,67461.0,67455.0,0.002794]
[1721572981772,0.1,67461.0,67455.0,0.15104]
[1721572981973,0.00048207,67462.0,67456.0,0.148243]
[1721572982183,0.00048207,67462.0,67457.0,0.002794]
[1721572982386,0.00048207,67462.0,67454.0,0.148247]
[1721572982387,0.00048207,67462.0,67455.0,0.002794]
[1721572982587,0.00048207,67462.0,67455.0,0.15104]
[1721572982815,0.00048207,67462.0,67455.0,0.002794]
[1721572983022,0.00048207,67462.0,67455.0,0.001]
[1721572983224,0.00048207,67462.0,67454.0,0.002794]
[1721572983404,0.00048207,67462.0,67454.0,0.151042]
[1721572983636,0.00048207,67462.0,67458.0,0.148239]
[1721572983839,0.00048207,67462.0,67460.0,0.148234]
[1721572984051,0.00048207,67462.0,67461.0,0.151027]
[1721572984257,0.00048207,67462.0,67461.0,0.148233]
[1721572984473,0.00048207,67462.0,67458.0,0.23198174]
[1721572984474,0.00048207,67462.0,67459.0,0.296476]
[1721572984682,0.00048207,67462.0,67460.0,0.151028]
[1721572984891,0.00048207,67462.0,67460.0,0.002794]
[1721572985095,0.00048207,67462.0,67461.0,0.148233]
[1721572985634,0.00048207,67462.0,67461.0,0.60187574]
[1721572985842,0.00048207,67462.0,67461.0,0.59908174]
[1721572986067,0.00048207,67462.0,67461.0,0.36441474]
[1721572986270,0.00048207,67462.0,67461.0,0.36720874]
[1721572986619,0.00048207,67462.0,67461.0,0.003794]
[1721572986879,0.00048207,67462.0,67461.0,0.001]
[1721572987850,0.06258207,67462.0,67461.0,0.001]
[1721572988393,0.06221756,67462.0,67461.0,0.001]
[1721572988730,0.00011756,67462.0,67461.0,0.001]